bitfinex/quotes_SOLUSD_20251119
["timestamp","ask_amount","ask_price","bid_price","bid_amount"]
[1763532941040,18.12096,138.91,138.88,0.68]
[1763532941218,18.12096,138.9,138.89,5.54469812]
[1763532942143,5.54469812,138.94,138.89,6.22469812]
[1763532942318,6.25469812,138.94,138.9,0.68]
[1763532942519,18.12096,138.92,138.91,4.32]
[1763532943142,6.25469812,138.94,138.91,4.32]
[1763532943342,5.54469812,138.93,138.91,4.32]
[1763532943509,6.19469812,138.93,138.91,4.32]
[1763532943714,0.65,138.93,138.91,4.32]
[1763532943913,0.65,138.93,138.83,1.99999999]
[1763532943914,24.31565812,138.92,138.86,6.19469812]
[1763532944108,5.54469812,138.91,138.87,4.32]
[1763532944521,6.19469812,138.91,138.87,4.97]
[1763532944726,6.19469812,138.91,138.87,10.51469812]
[1763532945423,0.65,138.91,138.87,10.51469812]
[1763532945909,23.66565812,138.92,138.88,0.65]
[1763532946105,24.31565812,138.92,138.88,0.65]
[1763532946633,24.31565812,138.92,138.89,5.54469812]
[1763532946634,18.12096,138.92,138.89,5.54469812]
[1763532947112,18.12096,138.92,138.89,6.19469812]
[1763532947513,18.12096,138.92,138.9,0.65]
[1763532947818,18.12096,138.92,138.91,4.32]
[1763532948220,0.2343797,138.98,138.91,9.86469812]
[1763532948421,5.54469812,138.97,138.92,0.65]
[1763532948617,18.12096,138.94,138.92,0.65]
[1763532949440,18.12096,138.94,138.92,6.19469812]
[1763532949833,19.0053397,138.98,138.93,0.65]
[1763532950341,19.0053397,138.98,138.91,10.51469812]
[1763532950342,6.19469812,138.97,138.91,10.51469812]
[1763532950543,6.19469812,138.97,138.92,0.65]
[1763532950848,18.12096,138.93,138.92,0.65]
[1763532951220,18.12096,138.93,138.91,4.32]
[1763532951420,18.12096,138.94,138.91,4.97]
[1763532951727,18.12096,138.93,138.91,10.51469812]
[1763532952031,18.12096,138.92,138.89,5.54469812]
[1763532952230,0.65,138.93,138.9,4.32]
[1763532952555,18.12096,138.91,138.9,4.32]
[1763532952734,0.65,138.92,138.9,4.32]
[1763532952735,0.65,138.93,138.9,9.86469812]
[1763532952932,18.12096,138.91,138.9,4.32]
[1763532953451,18.77096,138.91,138.9,4.32]
[1763532953635,18.12096,138.91,138.9,4.32]
[1763532953829,18.77096,138.91,138.9,4.32]
[1763532955224,24.31565812,138.95,138.9,4.97]
[1763532955426,24.31565812,138.95,138.9,10.51469812]
[1763532955625,18.12096,138.93,138.91,5.54469812]
[1763532955842,18.12096,138.93,138.9,10.51469812]
[1763532956238,18.12096,138.92,138.9,10.51469812]
[1763532957839,18.12096,138.91,138.9,4.32]
[1763532959431,0.65,138.91,138.9,4.32]
[1763532963159,6.19469812,138.91,138.87,4.32]
[1763532963464,18.12096,138.88,138.87,4.32]
[1763532967351,18.77096,138.93,138.87,10.51469812]
[1763532967554,18.12096,138.9,138.88,5.54469812]
[1763532967759,5.54469812,138.91,138.87,10.51469812]
[1763532967956,6.19469812,138.91,138.87,10.51469812]
[1763532968257,24.31565812,138.9,138.87,4.97]
[1763532968440,23.66565812,138.9,138.87,4.97]
[1763532968753,24.31565812,138.9,138.87,4.32]
[1763532969157,0.65,138.92,138.87,10.51469812]
[1763532969339,18.12096,138.88,138.87,10.51469812]
[1763532969841,18.12096,138.89,138.87,10.51469812]
[1763532970157,18.12096,138.89,138.88,0.65]
[1763532970355,18.12096,138.89,138.87,9.86469812]
[1763532970661,18.12096,138.89,138.87,10.51469812]
[1763532970962,18.12096,138.88,138.87,4.32]
[1763532971335,18.12096,138.89,138.87,10.51469812]
[1763532971536,18.12096,138.89,138.88,6.19469812]
[1763532971939,18.12096,138.88,138.87,4.32]
[1763532972135,18.12096,138.88,138.87,10.51469812]
[1763532972341,24.31565812,138.88,138.82,11.78882768]
[1763532972551,5.54469812,138.84,138.81,6.7160141]
[1763532972730,18.12096,138.82,138.81,0.72]
[1763532972927,18.12096,138.82,138.81,5.04]
[1763532973133,5.54469812,138.86,138.81,10.58469812]
[1763532973344,18.12096,138.83,138.82,0.72]
[1763532975342,18.12096,138.87,138.82,0.72]
[1763532975736,18.81096,138.87,138.82,0.72]
[1763532975937,0.69,138.86,138.82,0.72]
[1763532976463,0.69,138.86,138.81,4.32]
[1763532976665,9.28462051,138.82,138.81,4.32]
[1763532976835,9.97462051,138.82,138.81,4.32]
[1763532977038,9.97462051,138.82,138.76,0.92]
[1763532977342,9.28462051,138.79,138.77,4.32]
[1763532978072,9.97462051,138.78,138.77,4.32]
[1763532978553,9.97462051,138.78,138.76,0.2]
[1763532978871,9.97462051,138.77,138.76,0.2]
[1763532979878,19.7634482,138.77,138.76,0.2]
[1763532980402,10.47882769,138.77,138.76,0.2]
[1763532980603,19.7634482,138.77,138.76,0.2]
[1763532981087,9.97462051,138.77,138.76,0.2]
[1763532982802,4.32,138.83,138.76,0.91]
[1763532982983,9.28462051,138.8,138.76,0.91]
[1763532983185,18.12096,138.79,138.76,0.91]
[1763532983497,9.28462051,138.81,138.77,0.71]
[1763532983667,9.95462051,138.8,138.76,0.91]
[1763532983872,18.12096,138.77,138.76,0.2]
[1763532984187,9.28462051,138.79,138.76,0.91]
[1763532984498,18.12096,138.77,138.76,0.91]
[1763532986982,18.12096,138.77,138.76,0.2]
[1763532988088,18.12096,138.79,138.76,0.2]
[1763532988380,9.28462051,138.78,138.76,0.2]
[1763532989594,0.67,138.8,138.76,0.91]
[1763532989595,27.40558051,138.79,138.76,0.91]
[1763532989917,18.12096,138.79,138.76,0.2]
[1763532990080,28.07558051,138.79,138.76,0.2]
[1763532990490,9.28462051,138.78,138.76,0.2]
[1763532991295,9.28462051,138.77,138.76,0.2]
[1763532991678,9.95462051,138.77,138.76,0.2]
[1763532993407,9.95462051,138.77,138.76,0.03]
[1763532993605,9.95462051,138.77,138.73,2.247]
[1763532993806,18.12096,138.74,138.73,2.957]
[1763532994208,18.12096,138.74,138.73,2.247]
[1763532995210,9.28462051,138.74,138.73,2.247]
[1763532995816,9.95462051,138.74,138.73,2.247]
[1763532996198,9.28462051,138.74,138.73,2.247]
[1763532996800,9.95462051,138.74,138.73,2.247]
[1763532997001,9.95462051,138.74,138.67,0.91]
[1763532997206,4.32,138.77,138.68,4.32]
[1763532997207,18.12096,138.69,138.68,4.32]
[1763532997607,18.12096,138.69,138.68,5.03]
[1763532998091,9.28462051,138.7,138.68,5.03]
[1763532998291,9.28462051,138.7,138.68,4.32]
[1763532998522,9.28462051,138.7,138.68,5.03]
[1763532999018,9.28462051,138.7,138.68,4.32]
[1763532999227,27.40558051,138.7,138.68,4.32]
[1763532999406,18.12096,138.7,138.68,4.32]
[1763532999612,27.40558051,138.7,138.68,4.32]
[1763533000603,28.07558051,138.7,138.68,4.32]
[1763533000803,9.95462051,138.7,138.68,4.32]
[1763533003633,27.40558051,138.72,138.68,4.32]
[1763533003943,28.12558051,138.72,138.68,4.98]
[1763533005218,18.12096,138.69,138.68,4.98]
[1763533006318,27.40558051,138.7,138.68,4.32]
[1763533006521,10.00462051,138.69,138.68,4.32]
[1763533006857,9.28462051,138.69,138.68,4.32]
[1763533007223,27.40558051,138.69,138.68,4.32]
[1763533007642,28.12558051,138.69,138.68,4.32]
[1763533008447,56.89486268,138.83,138.68,4.98]
[1763533008633,9.28462051,138.77,138.72,9.28462051]
[1763533008827,18.12096,138.74,138.73,4.32]
[1763533009035,9.28462051,138.74,138.73,4.32]
[1763533009232,10.00462051,138.74,138.71,4.32]
[1763533009429,18.12096,138.69,138.68,0.66]
[1763533009641,18.12096,138.69,138.68,4.98]
[1763533009832,18.12096,138.69,138.68,14.26462051]
[1763533010347,18.12096,138.69,138.68,0.66]
[1763533010518,18.12096,138.69,138.68,4.32]
[1763533010921,18.12096,138.69,138.67,0.2]
[1763533010922,28.12558051,138.69,138.67,0.2]
[1763533011142,9.28462051,138.68,138.67,4.52]
[1763533012248,10.00462051,138.68,138.67,4.52]
[1763533015340,0.72,138.68,138.67,4.52]
[1763533015542,10.00462051,138.68,138.67,0.2]
[1763533015935,9.28462051,138.68,138.67,0.2]
[1763533016251,10.00462051,138.68,138.67,0.2]
[1763533019555,9.28462051,138.68,138.67,0.2]
[1763533019856,10.00462051,138.68,138.67,0.2]
[1763533020843,22.18186088,138.68,138.67,0.2]
[1763533021240,31.97068857,138.68,138.67,0.2]
[1763533022454,31.97068857,138.68,138.65,0.2]
[1763533022455,9.78882769,138.67,138.65,0.2]
[1763533022756,13.12972857,138.66,138.65,0.2]
[1763533023059,13.84972857,138.66,138.65,0.2]
[1763533024839,9.78882769,138.65,138.63,0.2]
[1763533025033,17.19062945,138.64,138.63,0.2]
[1763533028043,3.34090088,138.64,138.63,0.2]
[1763533028263,10.50882769,138.66,138.63,0.2]
[1763533028575,6.11548785,138.72,138.63,0.2]
[1763533028576,3.34090088,138.65,138.63,0.2]
[1763533029246,3.34090088,138.65,138.63,0.86]
[1763533029486,3.34090088,138.65,138.63,0.2]
[1763533030664,3.34090088,138.64,138.63,0.2]
[1763533031351,3.34090088,138.65,138.63,0.2]
[1763533031557,21.46186088,138.66,138.63,0.86]
[1763533031769,3.34090088,138.68,138.63,4.20090088]
[1763533031968,18.12096,138.66,138.64,0.66]
[1763533032269,3.34090088,138.68,138.64,4.00090088]
[1763533032477,3.34090088,138.69,138.64,4.00090088]
[1763533032678,3.34090088,138.69,138.65,0.68]
[1763533032857,21.46186088,138.69,138.65,0.68]
[1763533033065,3.34090088,138.68,138.65,0.68]
[1763533033376,3.34090088,138.67,138.65,0.68]
[1763533033755,3.34090088,138.68,138.65,0.68]
[1763533034871,3.34090088,138.67,138.65,0.68]
[1763533035768,3.34090088,138.68,138.65,0.68]
[1763533036754,2.13816855,138.68,138.65,0.68]
[1763533038767,2.13816855,138.67,138.65,0.68]
[1763533039086,18.12096,138.69,138.65,0.68]
[1763533039254,2.13816855,138.67,138.65,0.68]
[1763533041073,2.13816855,138.67,138.63,0.2]
[1763533041074,2.13816855,138.66,138.63,0.2]
[1763533041274,2.13816855,138.67,138.64,0.68]
[1763533041477,2.13816855,138.66,138.64,0.68]
[1763533045481,2.13816855,138.67,138.64,0.68]
[1763533046482,2.13816855,138.66,138.63,0.2]
[1763533046780,2.13816855,138.65,138.63,0.2]
[1763533046980,2.13816855,138.64,138.63,0.2]
[1763533047384,2.13816855,138.65,138.63,0.89]
[1763533048961,2.13816855,138.67,138.64,0.69]
[1763533049272,20.25912855,138.69,138.64,2.82816855]
[1763533049588,0.65,138.71,138.65,2.13816855]
[1763533049765,2.13816855,138.71,138.66,2.13816855]
[1763533049962,0.65,138.75,138.67,2.13816855]
[1763533050163,2.13816855,138.73,138.68,2.13816855]
[1763533050482,2.13816855,138.73,138.69,0.69]
[1763533051184,18.12096,138.74,138.7,2.13816855]
[1763533051557,18.12096,138.74,138.71,0.69]
[1763533051780,20.25912855,138.74,138.71,0.69]
[1763533051976,18.77096,138.74,138.71,0.69]
[1763533052177,20.25912855,138.74,138.71,0.69]
[1763533052374,2.13816855,138.73,138.7,0.69]
[1763533054493,2.13816855,138.71,138.7,0.69]
[1763533054667,2.13816855,138.71,138.67,0.69]
[1763533054865,2.13816855,138.69,138.68,4.32]
[1763533055394,2.13816855,138.69,138.68,5.01]
[1763533055781,18.12096,138.74,138.68,5.01]
[1763533055984,2.13816855,138.72,138.69,0.69]
[1763533056393,2.13816855,138.73,138.69,0.69]
[1763533056573,2.13816855,138.72,138.69,0.69]
[1763533056981,2.13816855,138.71,138.69,0.69]
[1763533059786,2.13816855,138.72,138.69,0.69]
[1763533063176,2.13816855,138.75,138.69,2.82816855]
[1763533063675,0.7,138.74,138.7,0.67]
[1763533063877,2.13816855,138.71,138.7,0.67]
[1763533064076,2.13816855,138.72,138.7,0.67]
[1763533064405,0.7,138.74,138.7,0.67]
[1763533064406,2.13816855,138.71,138.7,0.67]
[1763533065397,2.13816855,138.73,138.7,0.67]
[1763533065588,2.13816855,138.74,138.7,0.67]
[1763533065774,2.13816855,138.76,138.7,2.80816855]
[1763533065973,18.12096,138.76,138.7,2.80816855]
[1763533066197,2.13816855,138.76,138.71,2.80816855]
[1763533066401,2.13816855,138.75,138.71,0.67]
[1763533066584,2.13816855,138.74,138.72,0.67]
[1763533067210,2.13816855,138.75,138.72,0.67]
[1763533067385,2.13816855,138.74,138.72,0.67]
[1763533070175,2.83816855,138.73,138.7,4.32]
[1763533070484,2.13816855,138.71,138.7,4.32]
[1763533070692,2.13816855,138.71,138.7,4.99]
[1763533071206,2.13816855,138.72,138.7,4.99]
[1763533071787,2.83816855,138.72,138.7,4.32]
[1763533071987,2.83816855,138.71,138.7,4.32]
[1763533072987,2.13816855,138.71,138.7,4.32]
[1763533073512,2.83816855,138.71,138.67,4.99]
[1763533073684,2.83816855,138.71,138.63,2.33816855]
[1763533073685,20.25912855,138.69,138.64,0.67]
[1763533073889,2.13816855,138.68,138.65,4.32]
[1763533074303,2.13816855,138.68,138.66,0.67]
[1763533074477,14.10882769,138.76,138.66,0.67]
[1763533074478,2.13816855,138.69,138.66,0.67]
[1763533074682,18.12096,138.73,138.66,0.67]
[1763533074892,0.7,138.72,138.66,0.67]
[1763533075195,2.13816855,138.69,138.66,0.67]
[1763533076978,2.13816855,138.7,138.66,0.67]
[1763533077609,18.12096,138.73,138.68,2.13816855]
[1763533077810,18.12096,138.73,138.69,0.67]
[1763533077811,2.13816855,138.73,138.69,0.67]
[1763533077990,2.13816855,138.73,138.7,4.32]
[1763533078488,2.13816855,138.73,138.71,0.67]
[1763533079095,2.83816855,138.73,138.7,4.32]
[1763533079411,2.13816855,138.72,138.7,4.99]
[1763533080511,18.12096,138.76,138.71,0.67]
[1763533080722,0.7,138.79,138.71,2.80816855]
[1763533081016,0.8,138.81,138.74,2.13816855]
[1763533081191,0.8,138.81,138.75,6.45816855]
[1763533081513,2.13816855,138.8,138.75,6.45816855]
[1763533081694,0.1,138.81,138.76,0.67]
[1763533081890,0.1,138.81,138.78,2.13816855]
[1763533082104,0.1,138.81,138.79,2.13816855]
[1763533082330,0.1,138.81,138.77,9.78882769]
[1763533082642,0.1,138.81,138.76,0.67]
[1763533082643,0.1,138.81,138.78,0.67]
[1763533082933,0.1,138.81,138.79,2.13816855]
[1763533083227,0.1,138.81,138.8,0.67]
[1763533083432,0.1,138.85,138.8,20.92912855]
[1763533083719,0.1,138.85,138.8,18.79096]
[1763533083899,0.1,138.85,138.81,2.80816855]
[1763533084301,0.1,138.85,138.82,0.67]
[1763533084628,0.1,138.85,138.83,4.32]
[1763533085034,0.1,138.85,138.84,0.67]
[1763533085337,5.6524071,138.85,138.82,0.67]
[1763533085543,5.6524071,138.85,138.78,5.5524071]
[1763533085544,5.5524071,138.83,138.78,5.5524071]
[1763533085826,5.5524071,138.82,138.79,4.32]
[1763533086012,5.5524071,138.81,138.79,4.32]
[1763533086416,5.5524071,138.81,138.79,4.99]
[1763533086927,5.5524071,138.82,138.8,0.67]
[1763533087349,5.5524071,138.83,138.8,0.67]
[1763533087502,0.1,138.85,138.8,0.67]
[1763533087706,5.5524071,138.84,138.8,0.67]
[1763533089009,5.5524071,138.83,138.8,0.67]
[1763533089210,5.5524071,138.82,138.8,0.67]
[1763533090016,5.5524071,138.82,138.79,4.32]
[1763533090557,5.5524071,138.82,138.79,4.99]
[1763533091048,5.5524071,138.82,138.79,4.32]
[1763533091734,0.7,138.83,138.79,4.99]
[1763533091931,5.5524071,138.82,138.79,4.99]
[1763533092142,0.1,138.85,138.8,6.2224071]
[1763533092345,5.6524071,138.85,138.81,0.67]
[1763533092533,6.3224071,138.85,138.81,0.67]
[1763533093055,5.5524071,138.84,138.81,0.67]
[1763533093223,5.5524071,138.84,138.81,4.32]
[1763533093224,5.5524071,138.82,138.81,4.32]
[1763533093421,6.2224071,138.83,138.81,4.32]
[1763533094239,5.5524071,138.82,138.81,4.32]
[1763533095728,6.2224071,138.82,138.81,4.32]
[1763533096430,24.3433671,138.82,138.75,0.72]
[1763533096638,5.5524071,138.78,138.76,4.32]
[1763533096854,5.5524071,138.77,138.76,4.32]
[1763533097149,5.5524071,138.78,138.76,4.32]
[1763533098937,9.292087,138.78,138.76,4.32]
[1763533099451,18.79096,138.82,138.77,0.72]
[1763533099750,9.292087,138.81,138.77,0.72]
[1763533099922,9.962087,138.81,138.77,0.72]
[1763533100933,9.292087,138.8,138.77,0.72]
[1763533101354,9.292087,138.79,138.76,4.32]
[1763533101663,9.962087,138.79,138.76,4.32]
[1763533101844,9.292087,138.78,138.76,4.32]
[1763533102021,9.292087,138.77,138.76,4.32]
[1763533102427,0.67,138.79,138.76,4.32]
[1763533102622,18.12096,138.82,138.77,0.69]
[1763533102950,9.292087,138.8,138.77,0.69]
[1763533103634,9.292087,138.83,138.77,0.69]
[1763533103832,9.292087,138.81,138.77,0.69]
[1763533105058,9.292087,138.8,138.77,0.69]
[1763533106144,9.292087,138.81,138.77,0.69]
[1763533106547,27.413047,138.82,138.78,9.292087]
[1763533106937,27.413047,138.82,138.79,0.69]
[1763533107157,27.413047,138.82,138.8,4.32]
[1763533107462,9.972087,138.81,138.8,4.32]
[1763533107664,9.292087,138.81,138.8,4.32]
[1763533107965,0.1,138.85,138.8,14.302087]
[1763533107966,27.513047,138.85,138.8,14.302087]
[1763533108164,9.392087,138.85,138.81,0.69]
[1763533109238,9.292087,138.84,138.81,0.69]
[1763533110144,9.292087,138.83,138.81,0.69]
[1763533111142,0.1,138.85,138.82,9.292087]
[1763533111344,0.1,138.85,138.83,5.01]
[1763533111560,0.1,138.85,138.83,14.302087]
[1763533111760,0.1,138.85,138.84,0.69]
[1763533112141,0.1,138.85,138.84,9.982087]
[1763533113250,0.1,138.85,138.84,0.69]
[1763533117266,0.1,138.85,138.84,9.982087]
[1763533117961,0.1,138.85,138.84,0.69]
[1763533121079,0.1,138.85,138.83,4.32]
[1763533121744,10.072087,138.85,138.83,4.32]
[1763533123070,0.78,138.85,138.83,4.32]
[1763533124045,10.072087,138.85,138.83,4.32]
[1763533124876,0.78,138.85,138.83,4.32]
[1763533125081,10.072087,138.85,138.83,4.32]
[1763533125453,10.002087,138.84,138.83,4.32]
[1763533125978,9.292087,138.84,138.83,4.32]
[1763533126289,10.002087,138.84,138.83,4.32]
[1763533126784,9.392087,138.85,138.83,4.32]
[1763533127076,10.002087,138.84,138.83,4.32]
[1763533127692,10.002087,138.84,138.78,9.292087]
[1763533127848,0.1,138.85,138.75,10.44882769]
[1763533127849,9.292087,138.81,138.75,10.44882769]
[1763533128051,9.292087,138.79,138.75,0.66]
[1763533128256,9.292087,138.79,138.76,4.32]
[1763533128474,10.002087,138.79,138.76,4.32]
[1763533128671,0.71,138.79,138.76,4.32]
[1763533129881,10.002087,138.79,138.76,4.32]
[1763533130192,9.292087,138.84,138.78,27.413047]
[1763533130357,9.292087,138.84,138.79,14.272087]
[1763533130675,0.71,138.83,138.79,14.272087]
[1763533130854,10.002087,138.83,138.79,4.32]
[1763533131047,9.292087,138.8,138.79,4.32]
[1763533131250,9.292087,138.81,138.76,9.952087]
[1763533131451,0.71,138.8,138.77,4.32]
[1763533131854,9.292087,138.81,138.77,4.98]
[1763533132060,10.002087,138.81,138.77,4.98]
[1763533132267,18.12096,138.84,138.79,9.292087]
[1763533132465,18.12096,138.84,138.8,14.272087]
[1763533132466,18.83096,138.84,138.8,14.272087]
[1763533132771,18.83096,138.84,138.81,4.32]
[1763533133079,10.002087,138.84,138.81,4.32]
[1763533134582,10.002087,138.84,138.81,4.98]
[1763533134583,0.71,138.84,138.81,4.98]
[1763533134800,9.292087,138.84,138.81,4.32]
[1763533135095,18.83096,138.83,138.76,28.56978769]
[1763533135260,9.292087,138.81,138.77,4.32]
[1763533135759,10.002087,138.8,138.77,4.32]
[1763533136862,9.292087,138.81,138.77,4.98]
[1763533137062,0.71,138.82,138.77,4.32]
[1763533137272,10.002087,138.81,138.77,4.32]
[1763533137494,10.002087,138.81,138.77,4.98]
[1763533139474,0.71,138.81,138.77,4.98]
[1763533139672,0.71,138.81,138.78,0.66]
[1763533139891,10.002087,138.81,138.77,4.98]
[1763533140401,0.71,138.8,138.77,4.32]
[1763533140557,9.292087,138.79,138.77,4.32]
[1763533140761,10.002087,138.79,138.77,4.32]
[1763533140980,0.71,138.78,138.77,4.32]
[1763533141183,10.002087,138.78,138.77,4.32]
[1763533143191,10.002087,138.78,138.73,9.952087]
[1763533143192,10.002087,138.78,138.72,9.292087]
[1763533143486,10.002087,138.78,138.66,0.72118851]
[1763533143487,9.292087,138.75,138.73,4.32]
[1763533143687,9.292087,138.74,138.7,10.44882769]
[1763533143864,9.292087,138.73,138.71,4.32]
[1763533144066,9.292087,138.74,138.71,4.32]
[1763533144480,10.002087,138.74,138.71,4.32]
[1763533145399,9.292087,138.73,138.71,4.32]
[1763533145596,18.12096,138.76,138.69,0.66]
[1763533145830,10.002087,138.75,138.71,0.66]
[1763533146106,10.002087,138.75,138.7,13.612087]
[1763533146396,10.002087,138.74,138.7,4.32]
[1763533146576,9.292087,138.73,138.7,4.32]
[1763533146780,0.71,138.73,138.7,4.32]
[1763533147573,0.71,138.75,138.71,0.66]
[1763533147779,10.002087,138.75,138.71,0.66]
[1763533148501,10.002087,138.77,138.71,9.952087]
[1763533148683,9.292087,138.77,138.71,9.952087]
[1763533148885,28.123047,138.77,138.71,9.952087]
[1763533149397,9.292087,138.76,138.71,0.66]
[1763533149616,10.002087,138.76,138.71,9.952087]
[1763533150122,10.002087,138.76,138.72,0.66]
[1763533150290,10.002087,138.76,138.73,4.32]
[1763533152204,9.292087,138.75,138.73,4.32]
[1763533152514,10.002087,138.76,138.73,4.32]
[1763533152827,18.12096,138.77,138.73,4.32]
[1763533152992,28.103047,138.77,138.73,4.32]
[1763533153194,28.103047,138.77,138.74,0.71]
[1763533153392,28.103047,138.77,138.73,5.03]
[1763533153616,9.982087,138.76,138.73,4.32]
[1763533153812,9.982087,138.76,138.73,5.03]
[1763533154193,27.413047,138.77,138.73,5.03]
[1763533154607,27.413047,138.77,138.73,4.32]
[1763533154812,27.413047,138.77,138.74,0.71]
[1763533155599,28.103047,138.77,138.74,0.71]
[1763533156018,18.81096,138.77,138.74,0.71]
[1763533156321,28.103047,138.77,138.74,0.71]
[1763533156630,9.292087,138.78,138.74,0.71]
[1763533156797,28.103047,138.8,138.75,9.292087]
[1763533157002,28.103047,138.8,138.76,4.32]
[1763533157203,0.69,138.79,138.76,4.32]
[1763533157608,9.982087,138.79,138.76,4.32]
[1763533160017,9.292087,138.77,138.72,10.002087]
[1763533160313,9.982087,138.77,138.73,5.03]
[1763533160518,9.982087,138.77,138.74,4.32]
[1763533160847,6.24986073,138.77,138.74,5.03]
[1763533161030,0.69,138.77,138.74,5.03]
[1763533161331,6.24986073,138.78,138.74,5.03]
[1763533161833,0.69,138.78,138.74,10.58986073]
[1763533162008,5.55986073,138.81,138.76,5.55986073]
[1763533162207,0.69,138.82,138.76,5.55986073]
[1763533162208,24.37082073,138.82,138.76,5.55986073]
[1763533162405,5.55986073,138.79,138.75,0.65]
[1763533162830,0.7,138.81,138.75,24.33082073]
[1763533162831,5.55986073,138.8,138.75,24.33082073]
[1763533163219,6.25986073,138.8,138.76,0.65]
[1763533163421,0.7,138.8,138.76,0.65]
[1763533163920,6.25986073,138.8,138.76,0.65]
[1763533164429,5.55986073,138.78,138.74,4.97]
[1763533164936,6.25986073,138.78,138.74,4.97]
[1763533165623,0.7,138.77,138.74,4.97]
[1763533166236,5.55986073,138.79,138.74,4.97]
[1763533166435,0.7,138.78,138.74,4.97]
[1763533166828,0.7,138.81,138.75,6.20986073]
[1763533167033,6.25986073,138.81,138.75,6.20986073]
[1763533167221,6.25986073,138.81,138.75,5.55986073]
[1763533167424,6.25986073,138.81,138.75,6.20986073]
[1763533167629,0.7,138.81,138.76,6.20986073]
[1763533167831,0.7,138.81,138.77,10.52986073]
[1763533168354,0.7,138.81,138.78,0.65]
[1763533168637,0.7,138.81,138.77,10.52986073]
[1763533168842,0.7,138.81,138.73,6.20986073]
[1763533168843,5.55986073,138.78,138.73,6.20986073]
[1763533169022,18.82096,138.81,138.74,4.32]
[1763533169211,5.55986073,138.78,138.74,4.32]
[1763533169543,5.55986073,138.77,138.74,4.32]
[1763533169925,6.25986073,138.77,138.74,4.32]
[1763533170720,6.25986073,138.76,138.71,5.55986073]
[1763533170930,5.55986073,138.75,138.72,4.32]
[1763533171442,0.7,138.77,138.72,4.32]
[1763533171744,5.55986073,138.76,138.72,4.32]
[1763533171917,5.55986073,138.76,138.72,4.97]
[1763533172120,6.25986073,138.75,138.72,4.32]
[1763533172515,6.25986073,138.74,138.72,4.32]
[1763533173747,0.7,138.73,138.72,4.32]
[1763533173928,0.7,138.73,138.69,18.12096]
[1763533174247,0.7,138.73,138.66,10.43882769]
[1763533174248,5.55986073,138.71,138.66,10.43882769]
[1763533174431,5.55986073,138.71,138.67,4.32]
[1763533174628,6.25986073,138.71,138.67,4.97]
[1763533174837,2.83706278,138.71,138.67,4.97]
[1763533175333,2.83706278,138.7,138.67,4.32]
[1763533175531,2.13706278,138.69,138.67,4.32]
[1763533175732,2.13706278,138.68,138.67,4.32]
[1763533175940,2.83706278,138.68,138.67,4.32]
[1763533176828,6.26702449,138.68,138.67,4.32]
[1763533177745,6.26702449,138.68,138.65,0.2]
[1763533177937,6.26702449,138.67,138.66,4.32]
[1763533181932,6.26702449,138.67,138.65,0.2]
[1763533182128,6.26702449,138.66,138.65,0.2]
[1763533186447,5.56702449,138.66,138.65,0.2]
[1763533186648,0.68,138.67,138.65,0.2]
[1763533186960,5.56702449,138.66,138.65,0.2]